fUSD/lending_fUSD_20251019
["ID","MTS","AMOUNT","RATE_DAILY","PERIOD"]
[391835543,1760899058308,151.0,0.00034209,30]
[391835544,1760899058378,151.0,0.00034209,30]
[391835545,1760899058413,239.84119403,0.00034209,55]
[391835546,1760899058740,151.0,0.00034209,30]
[391835547,1760899058975,151.0,0.00034209,30]
[391835548,1760899059012,248.71531821,0.00034209,42]
[391835549,1760899059058,151.0,0.00034209,30]
[391835550,1760899059363,151.0,0.00034209,30]
[391835551,1760899059602,151.0,0.00034209,30]
[391835552,1760899059642,257.91778498,0.00034209,48]
[391835553,1760899059694,151.0,0.00034209,30]
[391835554,1760899060117,151.0,0.00034209,30]
[391835555,1760899060198,267.46074303,0.00034209,60]
[391835556,1760899060233,151.0,0.00034209,30]
[391835557,1760899060830,151.0,0.00034209,30]
[391835558,1760899061466,151.0,0.00034209,30]
[391835559,1760899062265,151.0,0.00034209,30]
[391835560,1760899062700,151.0,0.00034209,30]
[391835561,1760899063327,151.0,0.00034209,30]
[391835562,1760899063941,151.0,0.00034209,30]
[391835563,1760899064550,151.0,0.00034209,30]
[391835564,1760899065154,151.0,0.00034209,30]
[391835565,1760899065770,151.0,0.00034209,30]
[391835566,1760899066436,151.0,0.00034209,30]
[391835568,1760899067038,151.0,0.00034209,30]
[391835570,1760899067713,151.0,0.00034209,30]
[391835571,1760899068336,151.0,0.00034209,30]
[391835574,1760899261858,200.0,0.00034201,120]
[391835576,1760899325342,2763.04542284,0.00034201,30]
[391835577,1760899325426,1000.0,0.00034201,30]
[391835578,1760899325495,250.0,0.00034201,30]
[391835580,1760899326118,1000.0,0.00034201,30]
[391835581,1760899326155,1000.0,0.00034201,30]
[391835582,1760899326190,250.0,0.00034201,30]
[391835583,1760899326651,1000.0,0.00034201,30]
[391835584,1760899326696,1000.0,0.00034201,30]
[391835585,1760899326727,250.0,0.00034201,30]
[391835586,1760899327310,1000.0,0.00034201,30]
[391835587,1760899327353,1000.0,0.00034201,30]
[391835588,1760899327387,250.0,0.00034201,30]
[391835589,1760899327862,151.37261496,0.00034201,30]
[391835590,1760899327909,1000.0,0.00034201,30]
[391835591,1760899327949,549.76831894,0.00034201,30]
[391835592,1760899327980,250.0,0.00034201,30]
[391835593,1760899328010,1000.0,0.00034201,30]
[391835594,1760899328512,1000.0,0.00034201,30]
[391835595,1760899328575,1000.0,0.00034201,30]
[391835596,1760899328631,250.0,0.00034201,30]
[391835597,1760899329288,1000.0,0.00034201,30]
[391835598,1760899329329,1000.0,0.00034201,30]
[391835599,1760899329372,250.0,0.00034201,30]
[391835600,1760899329499,151.0,0.00034201,30]
[391835601,1760899329722,1000.0,0.00034201,30]
[391835602,1760899329835,1000.0,0.00034201,30]
[391835603,1760899329892,250.0,0.00034201,30]
[391835604,1760899330368,1000.0,0.00034201,30]
[391835605,1760899330493,1000.0,0.00034201,30]
[391835606,1760899330524,250.0,0.00034201,30]
[391835607,1760899330978,1000.0,0.00034201,30]
[391835608,1760899331115,1000.0,0.00034201,30]
[391835609,1760899331148,250.0,0.00034201,30]
[391835610,1760899331589,1000.0,0.00034201,30]
[391835611,1760899331711,1000.0,0.00034201,30]
[391835612,1760899331744,250.0,0.00034201,30]
[391835613,1760899332194,1000.0,0.00034201,30]
[391835614,1760899332327,1000.0,0.00034201,30]
[391835615,1760899332843,1000.0,0.00034201,30]
[391835616,1760899332932,1000.0,0.00034201,30]
[391835617,1760899333364,180.27263707,0.00034201,30]
[391835618,1760899333553,1000.0,0.00034201,30]
[391835619,1760899334205,1000.0,0.00034201,30]
[391835620,1760899334520,250.0,0.00034201,30]
[391835621,1760899334552,151.0,0.00034201,30]
[391835622,1760899334829,1000.0,0.00034201,30]
[391835623,1760899334867,500.0,0.00034201,30]
[391835624,1760899335194,250.0,0.00034201,30]
[391835625,1760899335233,151.0,0.00034201,30]
[391835626,1760899335455,1000.0,0.00034201,30]
[391835627,1760899335511,500.0,0.00034201,30]
[391835628,1760899335928,250.0,0.00034201,30]
[391835629,1760899336055,1000.0,0.00034201,30]
[391835630,1760899336287,151.0,0.00034201,30]
[391835631,1760899336323,500.0,0.00034201,30]
[391835632,1760899336554,250.0,0.00034201,30]
[391835633,1760899336679,1000.0,0.00034201,30]
[391835634,1760899336757,151.0,0.00034201,30]
[391835635,1760899336811,500.0,0.00034201,30]
[391835636,1760899337195,250.0,0.00034201,30]
[391835637,1760899337294,1000.0,0.00034201,30]
[391835638,1760899337364,151.0,0.00034201,30]
[391835639,1760899337453,500.0,0.00034201,30]
[391835640,1760899337567,250.0,0.00034201,30]
[391835641,1760899337830,250.0,0.00034201,30]
[391835642,1760899338036,151.0,0.00034201,30]
[391835643,1760899338095,500.0,0.00034201,30]
[391835644,1760899338235,250.0,0.00034201,30]
[391835645,1760899338484,250.0,0.00034201,30]
[391835646,1760899338686,151.0,0.00034201,30]
[391835647,1760899338768,500.0,0.00034201,30]
[391835648,1760899339206,250.0,0.00034201,30]
[391835649,1760899339403,500.0,0.00034201,30]
[391835650,1760899339437,151.0,0.00034201,30]
[391835651,1760899339745,250.0,0.00034201,30]
[391835652,1760899340041,151.0,0.00034201,30]
[391835653,1760899340148,500.0,0.00034201,30]
[391835654,1760899340394,250.0,0.00034201,30]
[391835655,1760899340703,151.0,0.00034201,30]
[391835656,1760899340877,500.0,0.00034201,30]
[391835657,1760899341026,250.0,0.00034201,30]
[391835658,1760899341351,151.0,0.00034201,30]
[391835659,1760899341511,500.0,0.00034201,30]
[391835660,1760899341651,250.0,0.00034201,30]
[391835661,1760899341953,151.0,0.00034201,30]
[391835662,1760899342152,500.0,0.00034201,30]
[391835663,1760899342295,250.0,0.00034201,30]
[391835664,1760899342409,200.0,0.00034201,30]
[391835665,1760899342636,151.0,0.00034201,30]
[391835666,1760899342797,300.0,0.00034201,30]
[391835667,1760899342955,500.0,0.00034201,30]
[391835668,1760899342989,250.0,0.00034201,30]
[391835669,1760899343294,151.0,0.00034201,30]
[391835670,1760899343567,500.0,0.00034201,30]
[391835671,1760899343598,250.0,0.00034201,30]
[391835672,1760899343953,151.0,0.00034201,30]
[391835673,1760899344207,500.0,0.00034201,30]
[391835674,1760899344246,250.0,0.00034201,30]
[391835675,1760899344836,500.0,0.00034201,30]
[391835676,1760899344869,250.0,0.00034201,30]
[391835677,1760899345107,151.0,0.00034201,30]
[391835678,1760899345487,250.0,0.00034201,30]
[391835679,1760899345529,500.0,0.00034201,30]
[391835680,1760899345789,151.0,0.00034201,30]
[391835681,1760899346109,250.0,0.00034201,30]
[391835682,1760899346151,500.0,0.00034201,30]
[391835683,1760899346706,151.0,0.00034201,30]
[391835684,1760899346761,250.0,0.00034201,30]
[391835685,1760899346800,500.0,0.00034201,30]
[391835686,1760899347251,151.0,0.00034201,30]
[391835687,1760899347439,500.0,0.00034201,30]
[391835688,1760899347903,151.0,0.00034201,30]
[391835689,1760899351084,1000.0,0.00034201,30]
[391835690,1760899351657,1000.0,0.00034201,30]
[391835691,1760899352264,1000.0,0.00034201,30]
[391835692,1760899352877,1000.0,0.00034201,30]
[391835693,1760899353538,1000.0,0.00034201,30]
[391835694,1760899354173,1000.0,0.00034201,30]
[391835695,1760899354772,1000.0,0.00034201,30]
[391835696,1760899355403,1000.0,0.00034201,30]
[391835697,1760899356012,1000.0,0.00034201,30]
[391835698,1760899356640,1000.0,0.00034201,30]
[391835699,1760899357259,1000.0,0.00034201,30]
[391835700,1760899357864,1000.0,0.00034201,30]
[391835701,1760899358460,1000.0,0.00034201,30]
[391835702,1760899359096,1000.0,0.00034201,30]
[391835703,1760899359720,1000.0,0.00034201,30]
[391835704,1760899360655,1000.0,0.00034201,30]
[391835705,1760899361412,1000.0,0.00034201,30]
[391835706,1760899363693,214.6,0.00034201,30]
[391835707,1760899364098,214.6,0.00034201,30]
[391835708,1760899364588,214.6,0.00034201,30]
[391835709,1760899365067,214.6,0.00034201,30]
[391835710,1760899365571,214.6,0.00034201,30]
[391835711,1760899371875,-209.32000016,0.00014997,2]
[391835715,1760899563215,200.0,0.00034189,120]
[391835716,1760899625344,1000.0,0.00034189,30]
[391835717,1760899625856,500.0,0.00034189,30]
[391835719,1760899625947,1000.0,0.00034189,30]
[391835720,1760899626450,500.0,0.00034189,30]
[391835721,1760899626551,1000.0,0.00034189,30]
[391835722,1760899627049,500.0,0.00034189,30]
[391835723,1760899627198,1000.0,0.00034189,30]
[391835724,1760899627660,500.0,0.00034189,30]
[391835725,1760899627985,1000.0,0.00034189,30]
[391835726,1760899628288,500.0,0.00034189,30]
[391835727,1760899628389,1000.0,0.00034189,30]
[391835728,1760899628893,500.0,0.00034189,30]
[391835729,1760899629507,500.0,0.00034189,30]
[391835730,1760899630147,500.0,0.00034189,30]
[391835731,1760899630779,500.0,0.00034189,30]
[391835732,1760899631447,500.0,0.00034189,30]
[391835733,1760899632739,151.0,0.00034189,30]
[391835734,1760899633512,151.0,0.00034189,30]
[391835735,1760899634151,151.0,0.00034189,30]
[391835736,1760899634762,151.0,0.00034189,30]
[391835737,1760899635402,151.0,0.00034189,30]
[391835738,1760899636067,151.0,0.00034189,30]
[391835739,1760899636718,151.0,0.00034189,30]
[391835740,1760899637077,250.0,0.00034189,30]
[391835741,1760899637113,644.46860119,0.00034189,30]
[391835742,1760899637347,151.0,0.00034189,30]
[391835743,1760899637718,250.0,0.00034189,30]
[391835744,1760899637999,151.0,0.00034189,30]
[391835745,1760899638439,250.0,0.00034189,30]
[391835746,1760899638632,151.0,0.00034189,30]
[391835747,1760899639080,250.0,0.00034189,30]
[391835748,1760899639715,250.0,0.00034189,30]
[391835749,1760899639761,151.0,0.00034189,30]
[391835750,1760899640347,250.0,0.00034189,30]
[391835751,1760899640410,151.0,0.00034189,30]
[391835752,1760899640949,250.0,0.00034189,30]
[391835753,1760899641032,151.0,0.00034189,30]
[391835754,1760899641558,250.0,0.00034189,30]
[391835755,1760899641665,151.0,0.00034189,30]
[391835756,1760899641950,200.0,0.00034189,30]
[391835757,1760899642163,250.0,0.00034189,30]
[391835758,1760899642286,151.0,0.00034189,30]
[391835759,1760899642316,300.0,0.00034189,30]
[391835760,1760899642781,250.0,0.00034189,30]
[391835761,1760899642911,151.0,0.00034189,30]
[391835762,1760899643400,250.0,0.00034189,30]
[391835763,1760899643554,151.0,0.00034189,30]
[391835764,1760899644203,250.0,0.00034189,30]
[391835765,1760899644251,151.0,0.00034189,30]
[391835766,1760899645326,151.0,0.00034189,30]
[391835767,1760899645994,151.0,0.00034189,30]
[391835779,1760899831719,-300.0,0.00014997,2]
[391835780,1760899831728,-58.79633395,0.00014997,2]
[391835781,1760899831742,-417.654328,0.00014997,2]
[391835782,1760899831754,-626.25577195,0.00014997,2]
[391835783,1760899831767,-97.2935661,0.00014997,2]
[391835784,1760899831778,-2131.01009081,0.00014997,2]
[391835785,1760899831787,-195.0,0.00014997,2]
[391835786,1760899831797,-300.0,0.00014997,2]
[391835787,1760899831808,-300.0,0.00014998,2]
[391835788,1760899831817,-300.0,0.00014998,2]
[391835789,1760899831828,-300.0,0.00014998,2]
[391835790,1760899831838,-987.52,0.00014998,2]
[391835791,1760899831848,-500.0,0.00014999,2]
[391835792,1760899831858,-500.0,0.00014999,2]
[391835793,1760899831868,-500.0,0.00014999,2]
[391835794,1760899831877,-163.32505448,0.00014999,2]
[391835795,1760899831891,-151.0,0.00015725,2]
[391835796,1760899831900,-150.1,0.00016379,2]
[391835797,1760899831911,-150.0,0.00016496,2]
[391835798,1760899831921,-195.0,0.00016497,2]
[391835799,1760899831932,-300.0,0.00016497,2]
[391835800,1760899831941,-300.0,0.00016497,2]
[391835801,1760899831951,-221.09543992,0.00016497,2]
[391835802,1760899831961,-195.0,0.00016497,2]
[391835803,1760899831971,-300.0,0.00016497,2]
[391835804,1760899831980,-2500.0,0.00016497,2]
[391835805,1760899831990,-514.50856641,0.00016497,2]
[391835807,1760899832002,-664.21,0.00016497,2]
[391835810,1760899832017,-428.0,0.00016497,2]
[391835812,1760899832029,-385.9555348,0.00016497,2]
[391835814,1760899832040,-1007.32589879,0.00016497,2]
[391835816,1760899832050,-111.63714592,0.00016497,2]
[391835818,1760899832062,-83.36285408,0.00016497,2]
[391835820,1760899832075,-195.0,0.00016497,2]
[391835822,1760899832091,-250.0,0.00016497,2]
[391835825,1760899832105,-150.1,0.00017471,2]
[391835827,1760899832115,-150.1,0.00018562,2]
[391835829,1760899832129,-500.0,0.000192,2]
[391835831,1760899832144,-500.0,0.000192,2]
[391835834,1760899832157,-500.0,0.0001945,2]
[391835836,1760899832172,-16.62646576,0.00019654,2]
[391835839,1760899832188,-133.47353424,0.00019654,2]
[391835842,1760899832200,-500.0,0.00019748,2]
[391835844,1760899832212,-150.1,0.00020746,2]
[391835846,1760899832225,-31.24748964,0.00021838,2]
[391835849,1760899832247,-118.85251036,0.00021838,2]
[391835851,1760899832259,-150.1,0.0002293,2]
[391835854,1760899832273,-178.92671913,0.00023,2]
[391835856,1760899832290,-605.1548664,0.00023,2]
[391835859,1760899832306,-5778.36371935,0.00023,2]
[391835861,1760899832320,-719.84441645,0.00023,2]
[391835863,1760899832334,-500.0,0.00023299,2]
[391835866,1760899832347,-500.0,0.00023299,2]
[391835868,1760899832361,-500.0,0.00023299,2]
[391835870,1760899832373,-500.0,0.00023299,2]
[391835872,1760899832388,-500.0,0.00023299,2]
[391835874,1760899832400,-500.0,0.00023299,2]
[391835877,1760899832414,-500.0,0.00023299,2]
[391835879,1760899832428,-500.0,0.00023299,2]
[391835881,1760899832440,-500.0,0.00023299,2]
[391835882,1760899832458,-442.53917382,0.00023299,2]
[391835883,1760899832471,-500.0,0.00023299,2]
[391835884,1760899832482,-500.0,0.00023299,2]
[391835885,1760899832494,-500.0,0.00023299,2]
[391835886,1760899832507,-178.92671913,0.000233,2]
[391835887,1760899832522,-7103.3630022,0.000233,2]
[391835888,1760899832533,-178.92671913,0.000235,2]
[391835889,1760899832543,-7103.3630022,0.000235,2]
[391835890,1760899832554,-178.92671913,0.000237,2]
[391835891,1760899832566,-7103.3630022,0.000237,2]
[391835893,1760899832580,-178.92671913,0.00024,2]
[391835895,1760899832592,-7103.3630022,0.00024,2]
[391835897,1760899832604,-150.1,0.00024022,2]
[391835899,1760899832614,-150.0,0.00024125,2]
[391835901,1760899832625,-7103.3630022,0.000242,2]
[391835904,1760899832639,-7103.3630022,0.000245,2]
[391835906,1760899832650,-7103.3630022,0.000247,2]
[391835908,1760899832661,-7103.3630022,0.000249,2]
[391835910,1760899832671,-150.1,0.00025114,2]
[391835912,1760899832683,-7103.3630022,0.000252,2]
[391835915,1760899832695,-159.0,0.00026027,40]
[391835917,1760899832707,-150.1,0.00026206,2]
[391835919,1760899832718,-151.0,0.00026763,7]
[391835921,1760899832729,-87255.25,0.00026766,2]
[391835924,1760899832740,-153.6,0.00026766,2]
[391835926,1760899832751,-500.0,0.00026773,2]
[391835928,1760899832763,-500.0,0.00026773,2]
[391835930,1760899832775,-500.0,0.00026773,2]
[391835933,1760899832788,-500.0,0.00026773,2]
[391835935,1760899832799,-500.0,0.00026773,2]
[391835937,1760899832811,-500.0,0.00026773,2]
[391835939,1760899832822,-500.0,0.00026773,2]
[391835942,1760899832833,-192.58382691,0.00026773,2]
[391835944,1760899832844,-500.0,0.00026773,2]
[391835946,1760899832856,-159.7,0.00027091,2]
[391835948,1760899832867,-200.0,0.00027146,2]
[391835951,1760899832880,-150.1,0.00027298,2]
[391835953,1760899832892,-1000.0,0.00027321,2]
[391835955,1760899832903,-1000.0,0.00027321,2]
[391835957,1760899832915,-500.0,0.00027321,2]
[391835960,1760899832928,-1500.0,0.00027868,5]
[391835962,1760899832939,-1500.0,0.00027868,5]
[391835964,1760899832950,-1115.995,0.00028045,18]
[391835966,1760899832962,-160.0,0.00028265,2]
[391835968,1760899832973,-150.1,0.0002839,2]
[391835971,1760899832984,-500.0,0.00028416,5]
[391835973,1760899832996,-2000.0,0.00028416,5]
[391835975,1760899833007,-159.90054883,0.00028767,120]
[391835978,1760899833020,-666.0,0.00028938,3]
[391835980,1760899833031,-500.0,0.00028964,5]
[391835982,1760899833043,-150.1,0.00029482,2]
[391835984,1760899833055,-200.0,0.00029759,2]
[391835987,1760899833066,-250.0,0.00029759,7]
[391835989,1760899833078,-250.0,0.00029759,2]
[391835991,1760899833089,-150.1,0.00030574,2]
[391835993,1760899833101,-153.0,0.00031,120]
[391835996,1760899833113,-160.0,0.00031,120]
[391835998,1760899833124,-500.0,0.00031016,8]
[391836000,1760899833135,-153.0,0.00031604,2]
[391836002,1760899833146,-153.0,0.00031604,2]
[391836005,1760899833158,-153.0,0.00031604,2]
[391836007,1760899833169,-153.0,0.00031604,2]
[391836009,1760899833181,-153.0,0.00031604,2]
[391836011,1760899833192,-153.0,0.00031604,2]
[391836014,1760899833205,-153.0,0.00031604,2]
[391836016,1760899833217,-153.0,0.00031604,2]
[391836018,1760899833229,-153.0,0.00031604,2]
[391836020,1760899833239,-153.0,0.00031604,2]
[391836023,1760899833251,-153.0,0.00031604,2]
[391836025,1760899833263,-153.0,0.00031604,2]
[391836027,1760899833276,-153.0,0.00031604,2]
[391836029,1760899833291,-153.0,0.00031604,2]
[391836032,1760899833303,-153.0,0.00031604,2]
[391836034,1760899833314,-153.0,0.00031604,2]
[391836036,1760899833326,-153.0,0.00031604,2]
[391836039,1760899833338,-153.0,0.00031604,2]
[391836041,1760899833349,-153.0,0.00031604,2]
[391836043,1760899833362,-153.0,0.00031604,2]
[391836046,1760899833385,-153.0,0.00031604,2]
[391836049,1760899833402,-153.0,0.00031604,2]
[391836052,1760899833416,-153.0,0.00031604,2]
[391836054,1760899833430,-153.0,0.00031604,2]
[391836057,1760899833444,-153.0,0.00031604,2]
[391836059,1760899833457,-153.0,0.00031604,2]
[391836062,1760899833469,-153.0,0.00031604,2]
[391836064,1760899833482,-153.0,0.00031604,2]
[391836067,1760899833495,-153.0,0.00031604,2]
[391836069,1760899833508,-153.0,0.00031604,2]
[391836071,1760899833522,-153.0,0.00031604,2]
[391836074,1760899833536,-153.0,0.00031604,2]
[391836076,1760899833549,-153.0,0.00031604,2]
[391836079,1760899833562,-153.0,0.00031604,2]
[391836081,1760899833575,-153.0,0.00031604,2]
[391836100,1760899833794,-153.0,0.00031604,2]
[391836101,1760899833805,-153.0,0.00031604,2]
[391836102,1760899833815,-153.0,0.00031604,2]
[391836103,1760899833825,-153.0,0.00031604,2]
[391836104,1760899833839,-153.0,0.00031604,2]
[391836105,1760899833848,-153.0,0.00031604,2]
[391836106,1760899833858,-153.0,0.00031604,2]
[391836107,1760899833867,-153.0,0.00031604,2]
[391836108,1760899833877,-153.0,0.00031604,2]
[391836109,1760899833887,-153.0,0.00031604,2]
[391836110,1760899833897,-153.0,0.00031604,2]
[391836111,1760899833907,-153.0,0.00031604,2]
[391836112,1760899833916,-153.0,0.00031604,2]
[391836113,1760899833927,-153.0,0.00031604,2]
[391836114,1760899833937,-153.0,0.00031604,2]
[391836115,1760899833946,-153.0,0.00031604,2]
[391836116,1760899833955,-153.0,0.00031604,2]
[391836117,1760899833964,-153.0,0.00031649,2]
[391836118,1760899833974,-153.0,0.00031649,2]
[391836119,1760899833983,-153.0,0.00031649,2]
[391836120,1760899833992,-153.0,0.00031649,2]
[391836121,1760899834002,-153.0,0.00031649,2]
[391836122,1760899834012,-153.0,0.00031649,2]
[391836123,1760899834021,-153.0,0.00031649,2]
[391836124,1760899834031,-153.0,0.00031649,2]
[391836125,1760899834041,-153.0,0.00031649,2]
[391836126,1760899834050,-153.0,0.00031649,2]
[391836127,1760899834059,-153.0,0.00031649,2]
[391836128,1760899834069,-153.0,0.00031649,2]
[391836129,1760899834078,-153.0,0.00031649,2]
[391836130,1760899834088,-153.0,0.00031649,2]
[391836131,1760899834098,-153.0,0.00031649,2]
[391836132,1760899834107,-153.0,0.00031649,2]
[391836133,1760899834117,-153.0,0.00031649,2]
[391836134,1760899834127,-153.0,0.00031649,2]
[391836135,1760899834137,-153.0,0.00031649,2]
[391836136,1760899834148,-153.0,0.00031649,2]
[391836137,1760899834158,-153.0,0.00031649,2]
[391836138,1760899834168,-153.0,0.00031649,2]
[391836139,1760899834178,-153.0,0.00031649,2]
[391836140,1760899834187,-153.0,0.00031649,2]
[391836141,1760899834198,-153.0,0.00031649,2]
[391836142,1760899834208,-150.1,0.00031666,2]
[391836143,1760899834221,-1199.86,0.000325,30]
[391836144,1760899834232,-1199.86,0.000325,30]
[391836145,1760899834242,-1199.86,0.000325,30]
[391836146,1760899834252,-1199.86,0.000325,30]
[391836147,1760899834262,-1199.86,0.000325,30]
[391836148,1760899834271,-1199.86,0.000325,30]
[391836149,1760899834281,-1199.86,0.000325,30]
[391836150,1760899834292,-1193.49,0.000325,30]
[391836151,1760899834307,-1199.86,0.000325,30]
[391836152,1760899834316,-150.1,0.00032757,2]
[391836153,1760899834326,-546.93,0.00032766,2]
[391836154,1760899834337,-167.91,0.00032766,2]
[391836155,1760899834347,-542.25,0.00032766,2]
[391836156,1760899834356,-168.31,0.00032766,2]
[391836157,1760899834367,-168.31,0.00032766,2]
[391836158,1760899834378,-168.31,0.00032766,2]
[391836159,1760899834389,-500.0,0.00032772,2]
[391836160,1760899834399,-531.58223687,0.00032772,2]
[391836161,1760899834408,-500.0,0.00032772,2]
[391836162,1760899834418,-500.0,0.00032772,2]
[391836163,1760899834428,-508.28991092,0.00032772,2]
[391836164,1760899834438,-532.52023768,0.00032772,2]
[391836165,1760899834448,-266.65727996,0.00032772,2]
[391836166,1760899834458,-500.0,0.00032772,2]
[391836167,1760899834467,-500.0,0.00032772,2]
[391836168,1760899834477,-585.36581615,0.00032772,2]
[391836169,1760899834488,-1888.75720521,0.00032776,2]
[391836170,1760899834499,-165.50795508,0.00032776,15]
[391836171,1760899834508,-2978.83,0.00032856,2]
[391836172,1760899834518,-500.0,0.00032865,8]
[391836173,1760899834527,-500.0,0.00032865,8]
[391836174,1760899834537,-500.0,0.00032865,7]
[391836175,1760899834550,-500.0,0.00032865,8]
[391836176,1760899834560,-500.0,0.00032865,8]
[391836177,1760899834572,-500.0,0.00032865,8]
[391836178,1760899834582,-500.0,0.00032865,8]
[391836179,1760899834593,-131530.686734,0.00032866,3]
[391836180,1760899834602,-2978.83,0.00032866,2]
[391836181,1760899834611,-151.0,0.00032866,30]
[391836182,1760899834621,-151.0,0.00032866,30]
[391836183,1760899834630,-3299.640341,0.00032866,30]
[391836184,1760899834640,-2233.30002088,0.00032866,30]
[391836185,1760899834655,-1066.34032012,0.00032866,30]
[391836186,1760899834666,-3299.640341,0.00032866,30]
[391836187,1760899834677,-3299.640341,0.00032866,30]
[391836188,1760899834688,-500.0,0.00032873,5]
[391836189,1760899834697,-246.80069132,0.00032873,2]
[391836190,1760899834707,-500.57012317,0.00032873,5]
[391836191,1760899834716,-500.0,0.00032873,5]
[391836192,1760899834726,-501.39846936,0.00032873,5]
[391836193,1760899834736,-500.0,0.00032873,5]
[391836194,1760899834746,-500.0,0.00032873,5]
[391836195,1760899834756,-500.0,0.00032873,5]
[391836196,1760899834765,-500.0,0.00032873,5]
[391836197,1760899834775,-635.16,0.00032875,8]
[391836198,1760899834785,-509.33973247,0.00032876,8]
[391836199,1760899834795,-500.0,0.00032876,8]
[391836200,1760899834804,-505.20416161,0.00032876,8]
[391836201,1760899834814,-500.0,0.00032876,8]
[391836202,1760899834823,-500.65641574,0.00032876,8]
[391836203,1760899834834,-500.0,0.00032876,8]
[391836204,1760899834843,-505.55101069,0.00032876,8]
[391836205,1760899834852,-517.43646662,0.00032876,8]
[391836206,1760899834862,-504.78084299,0.00032876,8]
[391836207,1760899834871,-500.0,0.00032876,8]
[391836208,1760899834880,-500.0,0.00032876,8]
[391836209,1760899834890,-500.0,0.00032876,8]
[391836210,1760899834899,-500.0,0.00032876,8]
[391836211,1760899834909,-500.0,0.00032876,8]
[391836212,1760899834919,-500.0,0.00032876,8]
[391836213,1760899834928,-500.0,0.00032876,8]
[391836214,1760899834937,-507.41298888,0.00032876,8]
[391836215,1760899834947,-500.0,0.00032876,8]
[391836216,1760899834956,-312.0027675,0.00032876,8]
[391836217,1760899834965,-500.0,0.00032876,8]
[391836218,1760899834975,-500.0,0.00032876,8]
[391836219,1760899834984,-511.46884039,0.00032876,8]
[391836220,1760899834993,-500.0,0.00032876,8]
[391836221,1760899835002,-500.0,0.00032876,8]
[391836222,1760899835011,-408.04053099,0.00032876,8]
[391836223,1760899835024,-91.95946901,0.00032876,8]
[391836224,1760899835033,-500.0,0.00032876,8]
[391836225,1760899835043,-500.0,0.00032876,8]
[391836226,1760899835052,-500.0,0.00032876,8]
[391836227,1760899835062,-500.0,0.00032876,8]
[391836228,1760899835071,-507.22543334,0.00032876,8]
[391836229,1760899835080,-500.0,0.00032876,8]
[391836230,1760899835089,-509.62863072,0.00032876,8]
[391836231,1760899835098,-500.0,0.00032876,8]